bitfinex/quotes_ETHUSD_20260310
["timestamp","ask_amount","ask_price","bid_price","bid_amount"]
[1773155325162,0.841,2072.2,2071.2,1.20702974]
[1773155326052,4.49511656,2072.4,2071.4,2.33017838]
[1773155327966,4.49511656,2072.4,2071.3,1.20697146]
[1773155328272,0.84,2072.3,2071.3,6.03299271]
[1773155328478,4.82709711,2072.5,2071.6,2.33017838]
[1773155328479,1.20827795,2072.5,2071.6,2.33017838]
[1773155328830,0.002,2072.5,2071.6,2.33017838]
[1773155329040,1.20828065,2072.5,2071.6,2.33017838]
[1773155329732,1.20828065,2072.5,2071.6,2.73147951]
[1773155329931,1.20828065,2072.5,2071.5,1.20680087]
[1773155330131,3.69253609,2072.5,2071.3,2.06693871]
[1773155330468,3.69253609,2072.5,2071.3,1.20693573]
[1773155330469,2.48425544,2072.4,2071.3,1.20693573]
[1773155330664,2.48425544,2072.4,2071.2,3.93846213]
[1773155330832,2.48425544,2072.4,2071.0,2.32935208]
[1773155331171,2.48425544,2072.2,2071.0,1.2071022]
[1773155332033,1.20650547,2072.1,2071.0,1.2071022]
[1773155332372,0.84,2072.0,2071.0,3.93858171]
[1773155332534,0.84,2072.0,2071.1,2.73147951]
[1773155332734,1.20650547,2072.1,2071.1,2.73147951]
[1773155332936,0.84,2072.0,2071.1,2.73147951]
[1773155333365,0.84,2072.1,2071.1,2.73147951]
[1773155333668,0.84,2072.3,2071.3,2.73147951]
[1773155334070,2.04831064,2072.5,2071.6,1.20679667]
[1773155334269,0.84,2072.4,2071.6,1.20679667]
[1773155334634,1.20827538,2072.5,2071.6,1.20679667]
[1773155334838,2.04827538,2072.5,2071.6,1.20679667]
[1773155335661,0.84,2072.4,2071.6,1.20679667]
[1773155335962,0.84,2072.4,2071.4,1.20691319]
[1773155336260,1.20638903,2072.3,2071.4,1.20691319]
[1773155336429,3.69064447,2072.3,2071.0,1.2071463]
[1773155336635,2.48425544,2072.2,2071.0,1.2071463]
[1773155337146,2.48425544,2072.2,2071.0,3.93862581]
[1773155338035,2.48425544,2071.8,2070.9,0.001]
[1773155338233,7.13219065,2072.0,2071.2,2.32935208]
[1773155338435,5.6664483,2072.0,2071.0,2.73147951]
[1773155338866,0.84,2071.9,2071.0,2.73147951]
[1773155339466,0.84,2072.2,2071.3,2.73147951]
[1773155339667,1.20828282,2072.5,2071.5,5.06083159]
[1773155339861,1.20828282,2072.5,2071.6,2.73147951]
[1773155340464,0.002,2072.5,2071.7,1.20673842]
[1773155340663,0.002,2072.5,2071.8,2.32935208]
[1773155340869,0.002,2072.5,2071.7,1.20673842]
[1773155341057,0.002,2072.5,2071.3,2.06891319]
[1773155341266,2.48625544,2072.5,2071.3,4.8004452]
[1773155341573,2.48425544,2072.3,2071.2,0.001]
[1773155341744,2.30574235,2072.3,2071.2,0.001]
[1773155341944,3.32525544,2072.2,2071.2,1.207993]
[1773155342186,2.48425544,2072.1,2071.2,0.001]
[1773155342339,2.48425544,2071.4,2070.6,0.001]
[1773155342545,2.48425544,2070.9,2070.2,0.001]
[1773155342749,2.48425544,2070.8,2070.2,0.001]
[1773155343054,2.32935208,2070.9,2070.2,0.001]
[1773155343055,3.32525544,2070.7,2070.2,0.001]
[1773155343646,2.48425544,2070.5,2070.0,0.001]
[1773155343993,0.841,2070.4,2069.8,0.001]
[1773155344349,1.20749613,2070.4,2069.8,0.001]
[1773155344586,0.841,2070.3,2069.8,0.001]
[1773155344752,1.20749613,2070.4,2069.8,0.001]
[1773155344954,0.841,2070.4,2069.8,0.001]
[1773155345148,0.841,2070.5,2069.8,0.001]
[1773155345460,1.20726289,2070.8,2069.8,0.001]
[1773155345671,0.841,2070.5,2069.8,0.001]
[1773155346385,0.841,2070.7,2069.8,0.001]
[1773155346590,1.2073795,2070.6,2069.8,0.001]
[1773155346899,2.48425544,2070.5,2069.8,0.001]
[1773155347187,2.48425544,2070.5,2069.5,0.001]
[1773155347393,2.48425544,2070.3,2069.5,0.001]
[1773155347559,1.2073795,2070.6,2069.5,0.001]
[1773155347758,0.842,2070.2,2069.5,0.001]
[1773155347989,2.48425544,2069.7,2069.3,0.001]
[1773155348286,2.48425544,2070.0,2069.1,0.001]
[1773155348598,2.48425544,2069.8,2069.1,0.001]
[1773155349080,0.842,2070.0,2069.1,0.001]
[1773155349289,0.842,2069.9,2069.1,0.001]
[1773155349502,1.20738256,2070.6,2069.5,2.32935208]
[1773155349655,0.842,2070.5,2069.3,2.73147951]
[1773155349849,0.842,2070.5,2069.2,2.32935208]
[1773155349850,1.20738256,2070.6,2069.5,2.73147951]
[1773155350050,1.20738256,2070.6,2069.2,2.73147951]
[1773155350289,1.20738256,2070.6,2069.4,2.73147951]
[1773155350792,0.842,2070.6,2069.6,2.73147951]
[1773155351288,0.842,2070.6,2069.5,1.20802126]
[1773155351582,1.20726289,2070.8,2069.5,1.20802126]
[1773155351583,3.69151833,2070.8,2069.5,1.20802126]
[1773155351754,0.842,2070.7,2069.6,5.06083159]
[1773155352255,0.842,2070.7,2069.6,2.73147951]
[1773155352896,1.2073795,2070.6,2069.6,1.20792477]
[1773155353054,1.2073795,2070.6,2069.4,4.83223439]
[1773155353878,2.48425544,2070.8,2069.7,2.32935208]
[1773155354188,4.53428588,2071.2,2070.0,5.06083159]
[1773155354391,2.05003044,2071.2,2070.0,2.73147951]
[1773155354789,0.843,2071.2,2070.1,3.5370232]
[1773155355086,2.05003237,2071.2,2070.1,3.5370232]
[1773155355392,0.002,2070.7,2070.1,3.5370232]
[1773155355687,0.002,2070.7,2070.1,1.20767112]
[1773155356068,0.002,2070.9,2070.5,2.32935208]
[1773155356269,2.04960339,2072.0,2070.9,2.73147951]
[1773155356684,0.843,2072.2,2071.1,5.06083159]
[1773155356990,1.20650547,2072.1,2071.2,3.93850925]
[1773155358607,1.20650547,2072.1,2071.0,4.82848305]
[1773155358807,1.20650547,2072.1,2070.9,1.2071463]
[1773155359006,2.48425544,2072.0,2070.9,1.2071463]
[1773155359411,2.60633672,2071.8,2070.7,1.20732119]
[1773155359793,2.60633672,2071.6,2070.4,3.93893279]
[1773155359978,0.843,2071.5,2070.4,6.26828487]
[1773155360184,0.843,2071.6,2070.7,5.01707549]
[1773155360584,0.843,2071.6,2070.7,2.68772341]
[1773155360796,2.04982251,2071.6,2070.8,1.20726289]
[1773155361189,1.20668018,2071.8,2070.8,3.8949863]
[1773155361388,2.05065587,2071.9,2070.8,3.8949863]
[1773155365311,4.65699259,2071.9,2070.8,1.20726289]
[1773155366229,3.81299259,2071.9,2070.8,1.20726289]
[1773155366406,0.845,2071.8,2070.9,2.68772341]
[1773155366601,0.845,2071.8,2070.7,2.0702811]
[1773155366797,3.45133672,2071.8,2070.7,2.0702811]
[1773155367701,1.20673842,2071.7,2070.7,2.0702811]
[1773155368096,2.60633672,2071.6,2070.3,7.51786427]
[1773155368336,1.20673842,2071.7,2070.6,2.68772341]
[1773155368511,0.845,2071.6,2070.6,2.68772341]
[1773155368909,0.845,2071.7,2070.9,2.33205118]
[1773155369108,0.845,2072.1,2071.3,2.68772341]
[1773155369341,0.002,2071.9,2071.3,2.68772341]
[1773155369698,0.002,2071.9,2071.4,1.20691319]
[1773155369899,0.002,2071.9,2071.1,2.07204493]
[1773155370098,0.002,2071.9,2071.1,2.07207224]
[1773155370399,0.002,2072.4,2071.8,2.33205118]
[1773155370598,0.002,2072.4,2071.8,5.01977459]
[1773155370836,0.002,2072.4,2071.9,2.68772341]
[1773155371450,2.60833672,2072.4,2071.2,0.065536]
[1773155371742,2.60633672,2072.1,2071.0,0.001]
[1773155372037,2.60633672,2071.7,2071.0,0.001]
[1773155372523,2.14227424,2071.8,2071.0,0.001]
[1773155372729,0.846,2071.8,2071.0,0.001]
[1773155373511,2.60633672,2072.1,2071.0,0.001]
[1773155373703,0.846,2072.0,2071.0,0.001]
[1773155374029,2.60633672,2072.1,2071.0,0.001]
[1773155374239,0.846,2072.0,2071.0,2.68872341]
[1773155375099,0.846,2071.9,2071.0,2.68872341]
[1773155375954,0.847,2071.9,2071.1,3.89481143]
[1773155376438,2.60633672,2071.6,2070.8,0.001]
[1773155376609,2.60633672,2071.6,2070.5,0.001]
[1773155376806,2.60633672,2071.6,2070.0,4.83089365]
[1773155377236,2.60633672,2071.6,2070.1,2.68772341]
[1773155377433,0.847,2071.5,2070.3,2.68772341]
[1773155378030,1.20691319,2071.4,2070.4,1.20749613]
[1773155378537,2.72405384,2071.7,2070.5,2.73602085]
[1773155378748,1.20674013,2071.7,2070.6,2.68772341]
[1773155378913,0.847,2071.6,2070.6,2.68772341]
[1773155379625,0.847,2071.6,2070.4,1.20749613]
[1773155379828,3.45333672,2071.6,2070.4,1.20749613]
[1773155380018,1.20685493,2071.5,2070.3,4.83020034]
[1773155380229,0.847,2071.4,2070.4,2.68772341]
[1773155381425,0.847,2071.3,2070.4,2.68772341]
[1773155381628,1.20685493,2071.5,2070.4,2.68772341]
[1773155381852,0.847,2071.4,2070.5,0.001]
[1773155382053,1.20697146,2071.3,2070.5,1.20843781]
[1773155382520,2.05397146,2071.3,2070.5,1.20843781]
[1773155384251,2.05397146,2071.3,2070.5,0.001]
[1773155384656,2.60633672,2071.2,2070.5,0.001]
[1773155384818,1.20697146,2071.3,2070.5,0.001]
[1773155385258,0.847,2071.2,2070.5,2.68872341]
[1773155386155,1.20697274,2071.3,2070.5,2.68872341]
[1773155386156,0.848,2071.3,2070.5,2.68872341]
[1773155386372,1.20698513,2071.3,2070.6,1.2073795]
[1773155386558,2.05479667,2071.6,2070.7,2.61256072]
[1773155387228,2.05479667,2071.6,2070.5,1.20840756]
[1773155387425,2.72372272,2071.5,2070.5,1.20840756]
[1773155387985,0.848,2071.4,2070.5,3.82096828]
[1773155388489,1.20697146,2071.3,2070.5,3.82096828]
[1773155388670,1.20693361,2071.4,2070.6,2.61256072]
[1773155388871,0.848,2071.5,2070.6,2.61256072]
[1773155389191,3.64802173,2071.5,2070.6,1.2073795]
[1773155389499,0.848,2071.4,2070.6,1.2073795]
[1773155389854,0.848,2071.4,2070.5,1.20841805]
[1773155390085,2.80002173,2071.3,2070.5,0.001]
[1773155390483,2.80002173,2070.8,2070.3,0.001]
[1773155390684,5.13262608,2070.6,2070.0,0.001]
[1773155390896,2.80002173,2070.5,2070.0,0.001]
[1773155391067,2.80002173,2070.5,2069.4,0.001]
[1773155391883,2.80002173,2070.2,2069.4,0.001]
[1773155392071,3.64802173,2070.1,2069.4,0.001]
[1773155392390,2.80002173,2069.9,2069.4,0.001]
[1773155392556,1.20784616,2069.8,2069.4,0.001]
[1773155392755,0.849,2069.7,2069.4,0.001]
[1773155392955,4.00763452,2070.3,2069.4,0.001]
[1773155393169,5.67953701,2070.2,2069.4,0.001]
[1773155393756,4.83053701,2070.2,2069.4,0.001]
[1773155393952,0.849,2070.1,2069.4,0.001]
[1773155394158,4.83053701,2070.2,2069.4,0.001]
[1773155394386,0.849,2070.1,2069.4,0.001]
[1773155395216,1.20772946,2070.0,2069.4,0.001]
[1773155395706,4.83067366,2070.2,2069.6,0.001]
[1773155395891,0.849,2070.1,2069.6,0.001]
[1773155396091,4.82983457,2070.5,2069.6,0.001]
[1773155396409,4.82983457,2070.5,2069.6,2.73050148]
[1773155396410,0.85,2070.2,2069.6,2.73050148]
[1773155396597,4.82983457,2070.5,2069.6,2.73050148]
[1773155396907,2.39814035,2070.9,2069.6,2.73050148]
[1773155396908,1.20726289,2070.8,2069.7,2.72950148]
[1773155397082,0.85,2070.6,2069.7,2.72950148]
[1773155397283,4.82905157,2071.0,2069.9,2.72950148]
[1773155397686,0.85,2070.9,2069.9,2.72950148]
[1773155397886,4.82905157,2071.0,2070.0,2.72950148]
[1773155398102,0.85,2070.8,2070.0,2.72950148]
[1773155398515,0.85,2070.8,2069.8,1.20784616]
[1773155398715,4.82855836,2071.1,2069.9,2.72950148]
[1773155398895,5.67855836,2071.1,2070.1,2.72950148]
[1773155399423,5.13262608,2070.9,2069.8,3.93734316]
[1773155399592,2.80002173,2070.9,2069.7,1.20787892]
[1773155399786,2.33260435,2070.7,2069.6,1.20896065]
[1773155399981,3.65102173,2070.6,2069.6,0.001]
[1773155400784,2.80002173,2070.5,2069.6,0.001]
[1773155401596,2.05849613,2070.4,2069.6,0.001]
[1773155401922,1.20749613,2070.4,2069.6,0.001]
[1773155402288,2.33260435,2070.3,2069.6,0.001]
[1773155402832,5.13262608,2070.3,2069.6,0.001]
[1773155403204,2.80002173,2070.3,2069.6,0.001]
[1773155403405,0.852,2070.2,2069.6,0.001]
[1773155403608,2.80002173,2070.0,2069.4,0.001]
[1773155403805,2.80002173,2070.0,2069.1,0.001]
[1773155403806,2.80002173,2069.9,2069.1,0.001]
[1773155404419,0.852,2069.8,2069.1,0.001]
[1773155404844,2.33260435,2070.0,2069.1,0.001]
[1773155405347,0.852,2069.9,2069.1,1.20922159]
[1773155405635,1.20784616,2069.8,2069.1,0.001]
[1773155406012,0.852,2069.7,2069.1,0.001]
[1773155406337,3.18460435,2069.7,2069.1,0.001]
[1773155406540,5.98462608,2069.7,2068.9,0.001]
[1773155406907,2.33260435,2069.4,2068.9,0.001]
[1773155407106,2.33260435,2069.1,2068.0,3.93836341]
[1773155407343,0.853,2069.0,2068.0,2.72950148]
[1773155407505,2.33260435,2068.8,2067.6,2.72950148]
[1773155407710,1.20848842,2068.7,2067.7,2.72950148]
[1773155407945,2.06148842,2068.7,2067.7,2.72950148]
[1773155408442,1.20848842,2068.7,2067.7,2.72950148]
[1773155408942,4.83322788,2069.1,2068.9,0.001]
[1773155409143,0.853,2069.0,2067.7,2.72950148]
[1773155409724,0.854,2069.1,2067.9,2.72950148]
[1773155409920,1.20807963,2069.4,2068.2,2.72950148]
[1773155410270,0.854,2069.7,2068.6,2.73050148]
[1773155410760,1.20784616,2069.8,2068.6,2.73050148]
[1773155410963,0.854,2069.7,2068.6,2.73050148]
[1773155411471,0.854,2069.6,2068.6,0.001]
[1773155411664,2.80002173,2069.3,2068.2,2.72950148]
[1773155412134,2.80002173,2069.3,2067.9,1.20890999]
[1773155412589,2.80002173,2069.3,2067.9,3.93841147]
[1773155412590,0.854,2069.2,2067.9,3.93841147]
[1773155413458,0.855,2069.1,2067.9,3.93841147]
[1773155413992,1.20831319,2069.0,2068.0,2.72950148]
[1773155414178,6.34665392,2069.0,2067.6,3.93859065]
[1773155414335,2.80002173,2068.9,2067.6,3.93859065]
[1773155414876,3.54663219,2069.0,2067.6,0.04836525]
[1773155414877,2.80002173,2068.6,2067.6,0.04836525]
[1773155415043,2.80002173,2068.6,2067.4,2.77787141]
[1773155415669,2.80002173,2068.6,2067.4,2.72950148]
[1773155416046,1.20860526,2068.5,2067.5,1.20918984]
[1773155416369,2.06360526,2068.5,2067.6,0.04836525]
[1773155416570,0.855,2068.4,2067.7,0.04836291]
[1773155416777,0.855,2068.3,2067.6,2.72950148]
[1773155417070,0.855,2068.3,2067.4,1.20924011]
[1773155417389,5.13834073,2068.1,2067.0,1.21915368]
[1773155417683,5.13834073,2068.1,2067.0,0.00968]
[1773155417947,5.13834073,2068.1,2067.0,1.21915584]
[1773155418104,1.20889748,2068.0,2067.1,0.04837695]
[1773155418298,1.20889748,2068.0,2067.0,3.94865732]
[1773155418610,0.856,2067.9,2067.0,3.94865732]
[1773155418805,2.80002173,2068.5,2067.1,2.72950148]
[1773155419010,2.0646637,2068.4,2067.1,2.72950148]
[1773155420105,2.0646637,2068.4,2067.3,2.67595086]
[1773155420542,1.20848842,2068.8,2067.3,2.67595086]
[1773155420748,1.20848842,2068.8,2067.6,2.67595086]
[1773155421049,0.856,2068.8,2067.6,2.67595086]
[1773155421403,4.83310163,2069.1,2067.7,2.67595086]
[1773155421821,0.856,2069.0,2067.7,2.67595086]
[1773155422045,1.20825479,2069.1,2067.9,2.67595086]
[1773155422620,2.54674608,2069.0,2067.9,2.67595086]
[1773155422960,0.002,2068.8,2067.9,2.67595086]
[1773155423533,0.002,2068.8,2068.1,2.67595086]
[1773155424056,0.002,2068.8,2068.2,1.25711076]
[1773155424435,0.002,2068.8,2068.3,2.67595086]
[1773155426671,0.002,2068.8,2068.4,1.2086637]
[1773155427160,0.002,2068.8,2068.4,3.88461456]
[1773155427363,0.002,2069.0,2068.4,3.88461456]
[1773155428270,1.20804702,2069.5,2068.6,2.67595086]
[1773155428571,2.06567871,2070.1,2069.1,2.67595086]
[1773155428767,0.002,2070.1,2069.2,2.67595086]
[1773155429177,0.002,2070.1,2069.3,2.67595086]
[1773155429352,0.002,2070.1,2069.5,2.67595086]
[1773155430179,0.002,2070.6,2070.2,2.67595086]
[1773155430544,0.002,2070.6,2070.2,3.88354935]
[1773155430746,0.002,2070.6,2070.2,3.8835589]
[1773155431357,1.20897146,2071.3,2070.2,3.8835589]
[1773155431562,1.20897146,2071.3,2070.3,2.67595086]
[1773155432652,1.20897146,2071.3,2070.4,1.20749613]
[1773155432854,1.20897146,2071.3,2070.4,3.88344699]
[1773155433180,0.002,2071.3,2070.5,2.67595086]
[1773155434779,0.002,2071.3,2070.2,1.20759381]
[1773155434988,0.858,2071.3,2070.3,2.67595086]
[1773155435147,0.002,2071.3,2070.3,2.67595086]
[1773155435492,0.002,2071.3,2070.3,2.65734546]
[1773155435657,0.002,2071.3,2070.5,2.67595086]
[1773155436769,0.002,2071.3,2070.6,1.2073795]
[1773155437278,0.002,2071.5,2070.9,2.67595086]
[1773155437477,0.002,2071.5,2071.0,2.67595086]
[1773155437795,0.002,2071.8,2071.2,2.67595086]
[1773155437986,1.20868025,2071.8,2071.2,2.67595086]
[1773155438201,0.002,2071.8,2071.2,2.67595086]
[1773155438409,0.002,2071.6,2071.2,2.67595086]
[1773155438762,0.002,2071.6,2071.3,1.20697146]
[1773155438967,0.002,2071.6,2071.1,1.20705949]
[1773155439392,0.002,2071.8,2071.1,1.20705949]
[1773155439393,0.002,2071.8,2071.3,2.67595086]
[1773155440907,0.002,2071.8,2071.4,1.20691319]
[1773155441234,3.53690212,2072.6,2071.5,2.67595086]
[1773155441428,4.82364339,2073.2,2071.5,2.67595086]
[1773155441429,0.002,2073.6,2073.0,2.67595086]
[1773155441730,0.002,2073.5,2073.0,2.67595086]
[1773155442269,0.002,2073.5,2072.6,3.54595086]
[1773155442470,0.002,2073.5,2072.6,2.67595086]
[1773155442780,0.002,2073.5,2072.8,2.67595086]
[1773155443138,0.854,2074.2,2073.1,2.67595086]
[1773155443271,2.05922585,2074.3,2073.3,5.0064032]
[1773155443466,1.20522585,2074.3,2073.3,2.67595086]
[1773155443675,0.002,2074.4,2073.7,2.67595086]
[1773155443974,0.002,2074.4,2073.6,2.67595086]
[1773155443975,1.20718174,2074.4,2073.6,2.67595086]
[1773155444171,0.002,2074.4,2073.6,2.67595086]
[1773155444374,1.20717609,2074.4,2073.6,2.67595086]
[1773155444812,0.002,2074.4,2073.6,2.67595086]
[1773155445020,0.002,2074.4,2073.6,3.8815735]
[1773155445604,0.002,2074.4,2073.7,2.67595086]
[1773155445805,0.002,2074.4,2073.8,2.67595086]
[1773155446509,0.002,2074.6,2074.1,2.67595086]
[1773155446919,0.002,2074.6,2074.2,1.20528396]
[1773155447423,0.002,2074.6,2073.7,2.62060459]
[1773155448279,0.002,2074.6,2074.0,2.62060459]
[1773155448484,0.002,2074.9,2074.0,2.62060459]
[1773155448900,0.002,2074.9,2074.1,1.20534207]
[1773155449111,0.002,2074.9,2074.2,2.62060459]
[1773155449588,0.002,2074.9,2074.1,1.20534207]
[1773155450018,0.002,2074.4,2074.1,1.20534207]
[1773155450203,0.002,2074.4,2074.1,1.18769341]
[1773155450410,0.002,2074.9,2074.2,2.77895655]
[1773155451012,0.002,2074.9,2074.3,1.20522585]
[1773155451413,4.81747364,2075.8,2074.6,2.77895655]
[1773155451414,1.20437984,2075.8,2074.6,2.77895655]
[1773155451631,3.82367058,2075.8,2074.3,6.69586585]
[1773155451816,2.61929074,2075.7,2074.3,6.69586585]
[1773155452016,2.61929074,2075.7,2074.3,2.77895655]
[1773155452228,2.61929074,2075.7,2074.2,1.20527851]
[1773155453253,2.61929074,2075.5,2074.0,1.20540019]
[1773155453868,1.20447099,2075.6,2073.9,1.20541393]
[1773155453869,2.61929074,2075.3,2073.9,1.20541393]
[1773155454160,2.61929074,2075.3,2074.0,0.03926774]
[1773155454452,3.47029074,2075.2,2073.9,1.20541393]
[1773155454817,2.61929074,2075.1,2073.8,1.20548297]
[1773155455363,3.82411001,2075.0,2073.6,1.20563271]
[1773155455507,3.82411001,2075.0,2073.7,0.04822298]
[1773155455711,3.82411001,2075.0,2073.6,1.20563271]
[1773155456015,3.82411001,2075.0,2073.6,3.98458926]
[1773155456229,2.61929074,2074.9,2073.2,5.49064]
[1773155456431,2.61929074,2074.9,2073.3,1.20580716]
[1773155457109,2.61929074,2074.7,2073.3,1.20580716]
[1773155457315,1.20505157,2074.6,2073.3,1.20580716]
[1773155457512,1.20505157,2074.6,2073.4,2.77895655]
[1773155457721,2.05505157,2074.6,2073.5,0.04822763]
[1773155458035,2.05505157,2074.6,2073.4,2.77895655]
[1773155458238,2.61929074,2074.5,2073.3,1.20580716]
[1773155458616,2.61929074,2074.5,2073.0,3.98489813]
[1773155458924,0.85,2074.4,2073.0,3.98489813]
[1773155459644,1.20522585,2074.3,2073.1,2.77895655]
[1773155460250,0.85,2074.2,2073.1,2.77895655]
[1773155460941,0.85,2074.1,2073.1,2.77895655]
[1773155461442,0.85,2074.1,2073.0,1.20594158]
[1773155461619,2.61929074,2074.2,2073.0,2.77895655]
[1773155461620,0.85,2074.0,2073.0,2.77895655]
[1773155461828,2.61929074,2074.6,2073.0,2.77895655]
[1773155462153,4.6744004,2074.5,2073.2,2.77995655]
[1773155462361,2.61929074,2074.4,2073.2,0.001]
[1773155462512,2.61929074,2074.3,2072.5,2.77895655]
[1773155462715,2.61929074,2074.3,2072.6,1.20618281]
[1773155462951,0.065536,2074.2,2072.6,1.20618281]
[1773155463119,2.61929074,2074.1,2073.0,0.001]
[1773155463520,1.20551644,2073.8,2073.0,0.001]
[1773155463724,2.61929074,2073.7,2073.0,0.001]
[1773155464112,2.61929074,2073.7,2072.7,0.001]
[1773155464318,6.01754559,2073.8,2072.7,0.001]
[1773155464319,2.61929074,2073.4,2072.7,0.001]
[1773155464570,0.85,2073.3,2072.7,0.001]
[1773155465617,1.20586532,2073.2,2072.7,0.001]
[1773155465818,0.849,2073.1,2072.7,0.001]
[1773155466019,0.849,2073.1,2071.9,1.20660706]
[1773155466020,2.61929074,2073.0,2071.9,1.20660706]
[1773155466248,3.5333709,2073.2,2071.9,3.98556361]
[1773155466249,0.849,2072.9,2071.9,3.98556361]
[1773155466448,0.849,2072.9,2072.2,2.77895655]
[1773155466662,0.849,2072.9,2071.9,1.20660706]
[1773155467026,0.849,2072.9,2071.8,3.98562862]
[1773155467429,3.46829074,2072.9,2071.8,2.77895655]
[1773155467733,3.46829074,2072.9,2071.4,3.98583217]
[1773155467734,1.20627261,2072.5,2071.4,3.98583217]
[1773155467950,0.849,2072.4,2071.4,3.98583217]
[1773155468267,0.849,2072.4,2071.3,1.20696216]
[1773155468569,2.61929074,2072.2,2071.0,3.98606494]
[1773155469756,0.85,2072.1,2071.2,2.77895655]
[1773155470021,4.94679632,2073.0,2071.4,2.32750558]
[1773155470265,4.94679632,2073.0,2071.8,2.32750558]
[1773155470266,4.82428137,2072.9,2071.8,2.32750558]
[1773155470436,4.82428137,2072.9,2071.9,2.82722142]
[1773155470437,0.85,2072.8,2071.9,2.82722142]
[1773155470631,0.85,2072.8,2071.5,5.10646213]
[1773155471478,0.85,2072.8,2071.6,2.77895655]
[1773155471652,0.85,2072.7,2071.8,2.77895655]
[1773155472023,4.8239632,2073.0,2071.8,2.77895655]
[1773155472425,0.85,2072.9,2071.8,2.77895655]
[1773155473257,4.8239632,2073.0,2071.8,2.77895655]
[1773155473435,0.85,2072.9,2071.8,2.77895655]
[1773155473630,4.8239632,2073.0,2071.8,2.77895655]
[1773155473957,1.20615622,2072.7,2071.9,1.20662194]
[1773155474118,1.20615622,2072.7,2071.8,3.98560058]
[1773155474322,4.82394266,2073.0,2071.8,3.98560058]
[1773155474323,1.20598166,2073.0,2071.8,3.98560058]
[1773155474564,0.85,2072.9,2071.9,2.77895655]
[1773155475258,1.20598166,2073.0,2071.9,2.77895655]
[1773155475564,0.85,2072.9,2071.9,2.77895655]
[1773155475725,0.85,2072.9,2071.9,3.98553481]
[1773155475726,1.20609803,2072.8,2071.9,3.98553481]
[1773155476057,1.20609803,2072.8,2072.0,0.001]
[1773155476633,3.82538877,2072.8,2072.0,0.001]
[1773155476835,0.85,2072.7,2072.0,0.001]
[1773155477039,2.61929074,2072.6,2071.8,0.001]
[1773155477244,2.61929074,2072.4,2071.5,0.001]
[1773155477745,2.61929074,2072.1,2070.6,0.001]
[1773155477949,2.61929074,2071.8,2070.6,0.001]
[1773155479044,2.61929074,2071.5,2070.6,0.001]
[1773155479456,0.85,2071.4,2070.6,0.001]
[1773155479762,1.20691319,2071.4,2070.6,0.001]
[1773155479935,0.85,2071.3,2070.6,0.001]
[1773155480729,1.20691319,2071.4,2070.6,0.001]
[1773155480730,0.85,2071.2,2070.6,0.001]
[1773155481668,1.20691319,2071.4,2070.6,0.001]
[1773155481872,0.85,2071.1,2070.6,0.001]
[1773155482163,1.20691319,2071.4,2070.6,0.001]
[1773155482164,0.85,2071.0,2070.6,0.001]
[1773155482564,0.85,2070.9,2070.6,0.001]
[1773155483069,1.20668018,2071.8,2070.6,0.001]
[1773155483243,2.52218532,2071.6,2070.6,0.001]
[1773155483936,1.20685493,2071.5,2070.6,0.001]
[1773155484867,0.851,2071.4,2070.6,0.001]
[1773155485571,3.37318532,2071.4,2070.6,0.001]
[1773155485873,0.851,2071.3,2070.6,0.001]
[1773155486077,3.97018532,2071.8,2070.6,0.001]
[1773155486267,0.851,2071.7,2070.6,0.001]
[1773155487562,7.3490318,2071.8,2070.6,2.60498573]
[1773155487746,0.851,2071.7,2070.6,2.60498573]
[1773155488149,0.851,2071.7,2070.7,1.20732119]
[1773155488150,1.20679667,2071.6,2070.7,1.20732119]
[1773155488469,1.20679667,2071.6,2070.6,0.001]
[1773155488645,0.851,2071.5,2070.6,3.81236001]
[1773155488969,0.851,2071.4,2070.6,3.81236001]
[1773155489339,0.852,2071.3,2070.8,0.001]
[1773155489750,0.852,2071.3,2070.8,2.60498573]
[1773155490174,0.852,2071.3,2070.8,3.81222042]
[1773155490372,0.002,2071.7,2070.9,2.60398573]
[1773155490735,0.854,2071.9,2071.2,2.60398573]
[1773155491970,0.002,2071.9,2071.2,2.60398573]
[1773155492176,0.854,2071.9,2071.3,3.81095719]
[1773155492558,2.06064761,2071.9,2071.3,2.60398573]
[1773155492870,0.002,2071.9,2071.3,2.60398573]
[1773155493639,0.002,2071.9,2071.4,4.93391709]
[1773155494260,0.002,2071.9,2071.5,1.20685493]
[1773155494462,0.002,2071.9,2071.5,3.81084066]
[1773155496067,0.002,2072.2,2071.7,4.93391709]
[1773155496243,0.002,2072.2,2071.8,1.20668018]
[1773155497599,0.002,2072.2,2071.8,6.14059727]
[1773155498079,0.002,2072.2,2071.6,1.20679667]
[1773155499063,0.002,2072.2,2071.5,3.81079334]
[1773155500108,0.002,2072.2,2071.8,2.32993136]
[1773155500427,0.002,2072.2,2071.8,3.53658043]
[1773155500704,0.002,2072.2,2071.7,1.20670329]
[1773155502599,0.002,2072.2,2071.6,3.81073904]
[1773155503006,0.002,2072.0,2071.6,3.81073904]
[1773155503999,0.002,2072.2,2071.8,4.93391709]
[1773155504203,0.002,2072.2,2071.9,2.60398573]
[1773155504596,0.002,2072.2,2071.7,1.20669398]
[1773155504776,0.002,2072.2,2071.5,4.82829882]
[1773155504974,2.52418532,2072.2,2071.5,0.001]
[1773155505212,0.851,2072.1,2071.5,0.001]
[1773155506078,2.52418532,2072.2,2071.5,0.001]
[1773155506079,0.853,2072.2,2071.5,1.20783834]
[1773155506274,0.853,2072.2,2071.5,0.001]
[1773155506478,1.20650547,2072.1,2071.5,0.001]
[1773155508178,0.002,2072.2,2071.5,2.38872553]
[1773155508608,0.002,2072.2,2071.6,1.20679667]
[1773155509176,0.002,2072.2,2071.5,0.001]
[1773155509998,0.002,2072.2,2071.5,1.20785025]
[1773155510218,0.851,2072.1,2071.5,3.76662858]
[1773155510580,1.20845006,2072.2,2071.5,3.76662858]
[1773155510913,2.05945436,2072.2,2071.5,3.76662858]